[Event "Late-Titled-Tuesday-Blitz-September-05-2023"]
[Site "Chess.com"]
[Date "2023.09.05"]
[Round "1"]
[White "temus_galaktionov"]
[Black "kacprekt"]
[Result "1-0"]
[WhiteElo "2820"]
[BlackElo "2435"]
[TimeControl "180+1"]
[EndTime "14:06:06 PDT"]
[Termination "temus_galaktionov won by resignation"]

1. d4 {[%clk 0:03:00.9]} 1... Nf6 {[%clk 0:02:59.5]} 2. Nf3 {[%clk 0:03:00.7]}
2... d5 {[%clk 0:02:57.2]} 3. c4 {[%clk 0:03:00.5]} 3... e6 {[%clk 0:02:57.5]}
4. Nc3 {[%clk 0:03:00.7]} 4... c5 {[%clk 0:02:57.6]} 5. cxd5 {[%clk 0:03:00.6]}
5... Nxd5 {[%clk 0:02:58.1]} 6. e4 {[%clk 0:03:00.5]} 6... Nxc3 {[%clk
0:02:58.7]} 7. bxc3 {[%clk 0:03:01.4]} 7... cxd4 {[%clk 0:02:59.4]} 8. cxd4
{[%clk 0:03:02.3]} 8... Bb4+ {[%clk 0:02:59.6]} 9. Bd2 {[%clk 0:03:02.9]} 9...
Bxd2+ {[%clk 0:03:00.3]} 10. Qxd2 {[%clk 0:03:03.8]} 10... O-O {[%clk
0:03:00.4]} 11. Bd3 {[%clk 0:03:04.3]} 11... Nc6 {[%clk 0:02:57.8]} 12. Qc3
{[%clk 0:03:03.9]} 12... Bd7 {[%clk 0:02:38.8]} 13. O-O {[%clk 0:03:03.2]} 13...
Rc8 {[%clk 0:02:37.9]} 14. Qb2 {[%clk 0:03:01.7]} 14... b6 {[%clk 0:02:36]} 15.
Rac1 {[%clk 0:02:51.3]} 15... Qe7 {[%clk 0:02:35.2]} 16. Ba6 {[%clk 0:02:48]}
16... Rb8 {[%clk 0:02:33]} 17. Rfd1 {[%clk 0:02:42.6]} 17... Nb4 {[%clk
0:02:31.6]} 18. Bf1 {[%clk 0:02:41.1]} 18... Rfc8 {[%clk 0:02:26.9]} 19. a3
{[%clk 0:02:37.6]} 19... Nc6 {[%clk 0:02:25.6]} 20. d5 {[%clk 0:02:37]} 20...
exd5 {[%clk 0:02:23.6]} 21. exd5 {[%clk 0:02:36.9]} 21... Na5 {[%clk 0:02:23.5]}
22. d6 {[%clk 0:02:32]} 22... Qd8 {[%clk 0:02:12.4]} 23. Ba6 {[%clk 0:02:21.1]}
23... Rxc1 {[%clk 0:02:10.2]} 24. Qxc1 {[%clk 0:02:20]} 24... Bg4 {[%clk
0:02:07]} 25. Qf4 {[%clk 0:02:16.6]} 25... Bxf3 {[%clk 0:01:51]} 26. Qxf3 {[%clk
0:02:17.5]} 26... Qd7 {[%clk 0:01:50.1]} 27. Qd5 {[%clk 0:02:04.9]} 27... Rd8
{[%clk 0:01:35.4]} 28. h3 {[%clk 0:01:59.4]} 28... Kf8 {[%clk 0:01:31.3]} 29.
Bb5 {[%clk 0:01:56.6]} 29... Qe6 {[%clk 0:01:30]} 30. Qd3 {[%clk 0:01:50.3]}
30... Nb7 {[%clk 0:01:10.9]} 31. d7 {[%clk 0:01:38.1]} 31... g6 {[%clk
0:01:09.6]} 32. Qc3 {[%clk 0:01:34.1]} 32... Nd6 {[%clk 0:00:28.6]} 33. Re1
{[%clk 0:01:23.3]} 33... Nxb5 {[%clk 0:00:20.2]} 34. Qh8+ {[%clk 0:01:21.5]}
34... Ke7 {[%clk 0:00:20.7]} 35. Rxe6+ {[%clk 0:01:21.2]} 35... fxe6 {[%clk
0:00:21.1]} 36. Qxh7+ {[%clk 0:01:21.2]} 36... Kd6 {[%clk 0:00:21.6]} 37. a4
{[%clk 0:01:20.3]} 37... Nc7 {[%clk 0:00:20.6]} 38. Qxg6 {[%clk 0:01:20.2]}
38... Rxd7 {[%clk 0:00:21.1]} 39. h4 {[%clk 0:01:20.4]} 39... a6 {[%clk
0:00:17.9]} 40. h5 {[%clk 0:01:20.4]} 40... b5 {[%clk 0:00:18.2]} 41. axb5
{[%clk 0:01:21.3]} 41... axb5 {[%clk 0:00:19]} 42. h6 {[%clk 0:01:21.8]} 1-0

[Event "Late-Titled-Tuesday-Blitz-September-05-2023"]
[Site "Chess.com"]
[Date "2023.09.05"]
[Round "1"]
[White "Bobbybunny"]
[Black "Triumphmate"]
[Result "0-1"]
[WhiteElo "2196"]
[BlackElo "2543"]
[TimeControl "180+1"]
[EndTime "14:06:08 PDT"]
[Termination "Triumphmate won by resignation"]

1. e4 {[%clk 0:02:57.4]} 1... d5 {[%clk 0:02:59.4]} 2. exd5 {[%clk 0:02:55.1]}
2... Nf6 {[%clk 0:02:59.5]} 3. d4 {[%clk 0:02:48]} 3... Bg4 {[%clk 0:02:52.6]}
4. Bb5+ {[%clk 0:02:46.3]} 4... c6 {[%clk 0:02:52.5]} 5. dxc6 {[%clk 0:02:44.2]}
5... Nxc6 {[%clk 0:02:53.4]} 6. Nf3 {[%clk 0:02:38.2]} 6... e6 {[%clk
0:02:45.2]} 7. O-O {[%clk 0:02:33]} 7... Be7 {[%clk 0:02:39.3]} 8. c3 {[%clk
0:02:32.1]} 8... O-O {[%clk 0:02:39.4]} 9. Bxc6 {[%clk 0:02:28.7]} 9... bxc6
{[%clk 0:02:39.2]} 10. Bg5 {[%clk 0:02:25.1]} 10... h6 {[%clk 0:02:39.1]} 11.
Bh4 {[%clk 0:02:24.1]} 11... Qb6 {[%clk 0:02:38.1]} 12. b4 {[%clk 0:02:15]}
12... a5 {[%clk 0:02:37.1]} 13. bxa5 {[%clk 0:02:07.4]} 13... Qb2 {[%clk
0:02:37.6]} 14. Nbd2 {[%clk 0:02:05.3]} 14... Qxc3 {[%clk 0:02:38.2]} 15. Rc1
{[%clk 0:02:02.9]} 15... Qxa5 {[%clk 0:02:34.8]} 16. Nc4 {[%clk 0:01:48.3]}
16... Qh5 {[%clk 0:02:31.2]} 17. Nce5 {[%clk 0:01:41.8]} 17... Rxa2 {[%clk
0:02:03.8]} 18. Nxc6 {[%clk 0:01:40]} 18... Bd6 {[%clk 0:02:04.3]} 19. Bg3
{[%clk 0:01:25.2]} 19... Bxg3 {[%clk 0:01:50.1]} 20. fxg3 {[%clk 0:01:16.7]}
20... Qd5 {[%clk 0:01:18.9]} 21. Nce5 {[%clk 0:01:14.4]} 21... Bh5 {[%clk
0:01:10.6]} 22. h3 {[%clk 0:01:12.7]} 22... Bxf3 {[%clk 0:01:07.6]} 23. Nxf3
{[%clk 0:01:11.9]} 23... Rd8 {[%clk 0:01:07.5]} 24. Qd3 {[%clk 0:01:03.5]} 24...
Ne4 {[%clk 0:01:07.5]} 25. g4 {[%clk 0:00:41]} 25... Ng5 {[%clk 0:01:08.1]} 26.
Rcd1 {[%clk 0:00:24.6]} 26... e5 {[%clk 0:01:01.8]} 27. Qe3 {[%clk 0:00:10.8]}
27... exd4 {[%clk 0:01:01.7]} 28. Rxd4 {[%clk 0:00:09.9]} 28... Nxf3+ {[%clk
0:01:01.7]} 0-1

[Event "Late-Titled-Tuesday-Blitz-September-05-2023"]
[Site "Chess.com"]
[Date "2023.09.05"]
[Round "1"]
[White "szachmistrz2500"]
[Black "jcibarra"]
[Result "0-1"]
[WhiteElo "2474"]
[BlackElo "2915"]
[TimeControl "180+1"]
[EndTime "14:06:12 PDT"]
[Termination "jcibarra won by resignation"]

1. Nf3 {[%clk 0:03:00.9]} 1... d6 {[%clk 0:02:59.8]} 2. g3 {[%clk 0:03:00.6]}
2... Nf6 {[%clk 0:02:58.9]} 3. Bg2 {[%clk 0:03:01.5]} 3... g6 {[%clk 0:02:59]}
4. O-O {[%clk 0:03:02.4]} 4... Bg7 {[%clk 0:02:59.5]} 5. d3 {[%clk 0:03:02.2]}
5... O-O {[%clk 0:02:59.2]} 6. e4 {[%clk 0:03:02.4]} 6... c5 {[%clk 0:02:59.9]}
7. Re1 {[%clk 0:02:54.4]} 7... Nc6 {[%clk 0:03:00]} 8. Nbd2 {[%clk 0:02:53.2]}
8... e5 {[%clk 0:02:59.6]} 9. c3 {[%clk 0:02:50.1]} 9... d5 {[%clk 0:02:55.4]}
10. Qe2 {[%clk 0:02:47.8]} 10... Re8 {[%clk 0:02:55.1]} 11. a3 {[%clk
0:02:45.1]} 11... a5 {[%clk 0:02:50.4]} 12. a4 {[%clk 0:02:36.9]} 12... b6
{[%clk 0:02:50.2]} 13. exd5 {[%clk 0:02:36.4]} 13... Nxd5 {[%clk 0:02:50.3]} 14.
Nc4 {[%clk 0:02:36]} 14... Bf5 {[%clk 0:02:43.7]} 15. Bg5 {[%clk 0:02:33.2]}
15... f6 {[%clk 0:02:39]} 16. Bc1 {[%clk 0:02:17.4]} 16... Ra7 {[%clk 0:02:29]}
17. Nh4 {[%clk 0:02:15.8]} 17... Be6 {[%clk 0:02:25.6]} 18. Bd2 {[%clk
0:02:11.1]} 18... Rd7 {[%clk 0:02:24.2]} 19. Rad1 {[%clk 0:02:10.4]} 19... g5
{[%clk 0:02:17.9]} 20. Nf3 {[%clk 0:02:08.9]} 20... Bf5 {[%clk 0:02:18.4]} 21.
Bc1 {[%clk 0:01:49.5]} 21... Bg4 {[%clk 0:02:06.5]} 22. h3 {[%clk 0:01:48.6]}
22... Bh5 {[%clk 0:02:06]} 23. g4 {[%clk 0:01:45.5]} 23... Bg6 {[%clk
0:01:58.7]} 24. Nh2 {[%clk 0:01:38.1]} 24... Nf4 {[%clk 0:01:37.3]} 25. Bxf4
{[%clk 0:01:22.4]} 25... exf4 {[%clk 0:01:38.2]} 26. Qf3 {[%clk 0:01:16.3]}
26... Ne5 {[%clk 0:01:29.8]} 27. Nxe5 {[%clk 0:01:15.3]} 27... fxe5 {[%clk
0:01:30.7]} 28. Bf1 {[%clk 0:01:12.8]} 28... c4 {[%clk 0:01:14.6]} 29. dxc4
{[%clk 0:01:06.2]} 29... e4 {[%clk 0:01:14.7]} 30. Qe2 {[%clk 0:01:06.3]} 30...
f3 {[%clk 0:01:10.2]} 31. Qc2 {[%clk 0:00:56.5]} 31... Be5 {[%clk 0:01:09.3]}
32. c5 {[%clk 0:00:50]} 32... Rxd1 {[%clk 0:00:52.6]} 33. Bc4+ {[%clk
0:00:47.5]} 33... Rd5 {[%clk 0:00:43.8]} 34. Qb3 {[%clk 0:00:46.7]} 34... Bf7
{[%clk 0:00:44.1]} 35. cxb6 {[%clk 0:00:47.1]} 35... Rd7 {[%clk 0:00:38.1]} 36.
Rxe4 {[%clk 0:00:46.6]} 36... Bxh2+ {[%clk 0:00:35]} 37. Kxh2 {[%clk 0:00:46]}
37... Rxe4 {[%clk 0:00:35.4]} 0-1

[Event "Late-Titled-Tuesday-Blitz-September-05-2023"]
[Site "Chess.com"]
[Date "2023.09.05"]
[Round "1"]
[White "Stalri"]
[Black "Witik"]
[Result "0-1"]
[WhiteElo "2372"]
[BlackElo "2677"]
[TimeControl "180+1"]
[EndTime "14:06:17 PDT"]
[Termination "Witik won by checkmate"]

1. d4 {[%clk 0:02:59.8]} 1... Nf6 {[%clk 0:02:59.4]} 2. c4 {[%clk 0:02:44.5]}
2... g6 {[%clk 0:02:59.3]} 3. Nc3 {[%clk 0:02:41.9]} 3... Bg7 {[%clk 0:02:59.7]}
4. e4 {[%clk 0:02:40.9]} 4... d6 {[%clk 0:02:59.4]} 5. h3 {[%clk 0:02:39.6]}
5... O-O {[%clk 0:02:57.5]} 6. Be3 {[%clk 0:02:39.3]} 6... e5 {[%clk 0:02:52.1]}
7. d5 {[%clk 0:02:37.1]} 7... Na6 {[%clk 0:02:47.9]} 8. g4 {[%clk 0:02:33.6]}
8... c6 {[%clk 0:02:46.6]} 9. Qd2 {[%clk 0:02:33]} 9... cxd5 {[%clk 0:02:44.4]}
10. cxd5 {[%clk 0:02:33.6]} 10... h5 {[%clk 0:02:42.5]} 11. gxh5 {[%clk
0:02:31.8]} 11... Nxh5 {[%clk 0:02:42.3]} 12. Nge2 {[%clk 0:02:32.2]} 12... Bd7
{[%clk 0:02:11.2]} 13. Rg1 {[%clk 0:02:26.2]} 13... Rc8 {[%clk 0:01:54.4]} 14.
Bg2 {[%clk 0:02:21.4]} 14... b5 {[%clk 0:01:53.8]} 15. a3 {[%clk 0:02:15.8]}
15... Nc5 {[%clk 0:01:51.8]} 16. Rd1 {[%clk 0:02:11]} 16... a5 {[%clk
0:01:47.5]} 17. b4 {[%clk 0:02:09.6]} 17... Nb3 {[%clk 0:01:42.9]} 18. Qd3
{[%clk 0:01:59.7]} 18... a4 {[%clk 0:01:41.1]} 19. Bf3 {[%clk 0:01:58.1]} 19...
Nf4 {[%clk 0:01:40.5]} 20. Nxf4 {[%clk 0:01:51.8]} 20... exf4 {[%clk 0:01:41.4]}
21. Nxb5 {[%clk 0:01:37.5]} 21... fxe3 {[%clk 0:01:37.3]} 22. fxe3 {[%clk
0:01:32.5]} 22... Qh4+ {[%clk 0:01:25.9]} 23. Ke2 {[%clk 0:01:26.3]} 23... Bxb5
{[%clk 0:01:16.7]} 24. Qxb5 {[%clk 0:01:25.8]} 24... Rc2+ {[%clk 0:01:16.5]} 25.
Kd3 {[%clk 0:01:22.8]} 25... Qf2 {[%clk 0:01:15.4]} 26. e5 {[%clk 0:01:13.8]}
26... Bxe5 {[%clk 0:01:05.7]} 27. Rde1 {[%clk 0:00:22.5]} 27... Rc3+ {[%clk
0:00:51.5]} 28. Ke4 {[%clk 0:00:15.5]} 28... Qxe3+ {[%clk 0:00:44.1]} 29. Rxe3
{[%clk 0:00:14]} 29... Nd2# {[%clk 0:00:44.6]} 0-1

[Event "Late-Titled-Tuesday-Blitz-September-05-2023"]
[Site "Chess.com"]
[Date "2023.09.05"]
[Round "1"]
[White "lionheart95"]
[Black "EstudiandoAjedrezRD"]
[Result "1-0"]
[WhiteElo "2551"]
[BlackElo "2216"]
[TimeControl "180+1"]
[EndTime "14:06:18 PDT"]
[Termination "lionheart95 won by checkmate"]

1. Nf3 {[%clk 0:02:59]} 1... Nf6 {[%clk 0:02:59.6]} 2. g3 {[%clk 0:02:58.3]}
2... g6 {[%clk 0:02:51.2]} 3. Bg2 {[%clk 0:02:58.2]} 3... Bg7 {[%clk 0:02:51.2]}
4. O-O {[%clk 0:02:58.7]} 4... O-O {[%clk 0:02:51]} 5. d4 {[%clk 0:02:59.3]}
5... d5 {[%clk 0:02:50.2]} 6. a4 {[%clk 0:02:57.6]} 6... a5 {[%clk 0:02:44.6]}
7. Na3 {[%clk 0:02:56.1]} 7... c6 {[%clk 0:02:38.8]} 8. c4 {[%clk 0:02:49.5]}
8... Na6 {[%clk 0:02:34.7]} 9. Ne5 {[%clk 0:02:39.3]} 9... Ne4 {[%clk
0:02:30.1]} 10. cxd5 {[%clk 0:02:29.4]} 10... cxd5 {[%clk 0:02:27.8]} 11. Nb5
{[%clk 0:02:29]} 11... Nb4 {[%clk 0:02:21.7]} 12. Nd3 {[%clk 0:02:23.4]} 12...
Bd7 {[%clk 0:02:14.8]} 13. Be3 {[%clk 0:02:17.8]} 13... Rc8 {[%clk 0:02:04.6]}
14. Nxb4 {[%clk 0:02:11.4]} 14... axb4 {[%clk 0:02:04.2]} 15. Qb3 {[%clk
0:02:10.5]} 15... Bxb5 {[%clk 0:01:59.8]} 16. axb5 {[%clk 0:02:11.4]} 16... Qd6
{[%clk 0:01:56.1]} 17. Rfc1 {[%clk 0:02:04.4]} 17... Rxc1+ {[%clk 0:01:54.7]}
18. Rxc1 {[%clk 0:02:05.3]} 18... Ra8 {[%clk 0:01:52.5]} 19. h4 {[%clk
0:01:59.3]} 19... h6 {[%clk 0:01:51.9]} 20. Bf4 {[%clk 0:01:53]} 20... e5 {[%clk
0:01:45.4]} 21. dxe5 {[%clk 0:01:47.9]} 21... Bxe5 {[%clk 0:01:44]} 22. Bxe5
{[%clk 0:01:48.2]} 22... Qxe5 {[%clk 0:01:43.8]} 23. Qxb4 {[%clk 0:01:47.4]}
23... Nxg3 {[%clk 0:01:41.7]} 24. Re1 {[%clk 0:01:22]} 24... Nf5 {[%clk
0:01:35.4]} 25. e4 {[%clk 0:01:07.3]} 25... dxe4 {[%clk 0:01:30.2]} 26. Bxe4
{[%clk 0:01:04.3]} 26... Qf4 {[%clk 0:01:26.6]} 27. Qc3 {[%clk 0:00:57.3]} 27...
Nxh4 {[%clk 0:01:22.7]} 28. Bxb7 {[%clk 0:00:56.6]} 28... Rb8 {[%clk 0:01:16.8]}
29. Bc6 {[%clk 0:00:53.5]} 29... Qg4+ {[%clk 0:01:15.4]} 30. Qg3 {[%clk
0:00:52.2]} 30... Qb4 {[%clk 0:01:05.1]} 31. Qxb8+ {[%clk 0:00:50.7]} 31... Kh7
{[%clk 0:01:04]} 32. Qe5 {[%clk 0:00:44.7]} 32... Qg4+ {[%clk 0:00:58.7]} 33.
Qg3 {[%clk 0:00:43.7]} 33... Qb4 {[%clk 0:00:58.8]} 34. Re4 {[%clk 0:00:43.3]}
34... Qxb2 {[%clk 0:00:51.2]} 35. Rxh4 {[%clk 0:00:40.8]} 35... Qc1+ {[%clk
0:00:51.1]} 36. Kh2 {[%clk 0:00:40.4]} 36... Qd2 {[%clk 0:00:50.5]} 37. Qf4
{[%clk 0:00:34.9]} 37... Qa2 {[%clk 0:00:46]} 38. Qxh6+ {[%clk 0:00:34.5]} 38...
Kg8 {[%clk 0:00:42.8]} 39. Qh8# {[%clk 0:00:35.4]} 1-0

[Event "Late-Titled-Tuesday-Blitz-September-05-2023"]
[Site "Chess.com"]
[Date "2023.09.05"]
[Round "1"]
[White "ridnani2021"]
[Black "Perdomov"]
[Result "1-0"]
[WhiteElo "2539"]
[BlackElo "2175"]
[TimeControl "180+1"]
[EndTime "14:06:18 PDT"]
[Termination "ridnani2021 won by checkmate"]

1. e4 {[%clk 0:03:00.9]} 1... c5 {[%clk 0:02:56.4]} 2. Nf3 {[%clk 0:03:00.1]}
2... e6 {[%clk 0:02:56.4]} 3. b3 {[%clk 0:02:59]} 3... d6 {[%clk 0:02:56]} 4.
Bb2 {[%clk 0:02:58.9]} 4... Nf6 {[%clk 0:02:56.3]} 5. e5 {[%clk 0:02:55.8]} 5...
dxe5 {[%clk 0:02:41.4]} 6. Nxe5 {[%clk 0:02:56.7]} 6... a6 {[%clk 0:02:37.7]} 7.
Be2 {[%clk 0:02:45.6]} 7... Be7 {[%clk 0:02:37.3]} 8. O-O {[%clk 0:02:44.6]}
8... O-O {[%clk 0:02:36.6]} 9. Bf3 {[%clk 0:02:43.9]} 9... Qc7 {[%clk
0:02:35.4]} 10. Re1 {[%clk 0:02:41.9]} 10... Bd7 {[%clk 0:02:13.8]} 11. Nc3
{[%clk 0:02:36.2]} 11... Nc6 {[%clk 0:02:13.8]} 12. Nxc6 {[%clk 0:02:29.5]}
12... Bxc6 {[%clk 0:02:14.7]} 13. d3 {[%clk 0:02:30]} 13... b5 {[%clk
0:02:11.1]} 14. Bxc6 {[%clk 0:02:20.2]} 14... Qxc6 {[%clk 0:02:10.8]} 15. Ne4
{[%clk 0:02:21.1]} 15... Nxe4 {[%clk 0:02:06.7]} 16. Rxe4 {[%clk 0:02:22]} 16...
f5 {[%clk 0:01:37.1]} 17. Re2 {[%clk 0:02:16.9]} 17... Bf6 {[%clk 0:01:37.3]}
18. Bxf6 {[%clk 0:02:12.5]} 18... Rxf6 {[%clk 0:01:37.3]} 19. Re5 {[%clk
0:02:13.1]} 19... Rd8 {[%clk 0:01:33.7]} 20. Qe2 {[%clk 0:02:10.7]} 20... c4
{[%clk 0:01:29.4]} 21. dxc4 {[%clk 0:01:56.4]} 21... bxc4 {[%clk 0:01:30.3]} 22.
Qxc4 {[%clk 0:01:56.7]} 22... Qxc4 {[%clk 0:01:29.7]} 23. bxc4 {[%clk
0:01:57.6]} 23... Rc8 {[%clk 0:01:30]} 24. c5 {[%clk 0:01:55.3]} 24... Rf7
{[%clk 0:00:51.8]} 25. Rb1 {[%clk 0:01:46.7]} 25... Rfc7 {[%clk 0:00:20.3]} 26.
Rxe6 {[%clk 0:01:45]} 26... Rxc5 {[%clk 0:00:20]} 27. Rxa6 {[%clk 0:01:42.8]}
27... Rxc2 {[%clk 0:00:20.2]} 28. h3 {[%clk 0:01:38.1]} 28... R8c7 {[%clk
0:00:14.4]} 29. Rb8+ {[%clk 0:01:34.7]} 29... Kf7 {[%clk 0:00:14.3]} 30. Rba8
{[%clk 0:01:33]} 30... h6 {[%clk 0:00:09.9]} 31. a4 {[%clk 0:01:17.6]} 31...
Rc1+ {[%clk 0:00:08.3]} 32. Kh2 {[%clk 0:01:17.4]} 32... R7c2 {[%clk 0:00:09.2]}
33. Rb8 {[%clk 0:01:11.5]} 33... Rxf2 {[%clk 0:00:07.8]} 34. Rb7+ {[%clk
0:01:10.7]} 34... Kg8 {[%clk 0:00:05.4]} 35. Rg6 {[%clk 0:01:11.1]} 35... Kh8
{[%clk 0:00:01.8]} 36. Rbxg7 {[%clk 0:01:08.5]} 36... Rcc2 {[%clk 0:00:02.7]}
37. Rg8+ {[%clk 0:01:06.4]} 37... Kh7 {[%clk 0:00:02.9]} 38. R6g7# {[%clk
0:01:07.3]} 1-0

[Event "Late-Titled-Tuesday-Blitz-September-05-2023"]
[Site "Chess.com"]
[Date "2023.09.05"]
[Round "1"]
[White "ShiroglanTalibov"]
[Black "Tsyhanchuk_Stanislav"]
[Result "1-0"]
[WhiteElo "2779"]
[BlackElo "2419"]
[TimeControl "180+1"]
[EndTime "14:06:20 PDT"]
[Termination "ShiroglanTalibov won by resignation"]

1. e4 {[%clk 0:03:00.9]} 1... c5 {[%clk 0:02:58]} 2. Nf3 {[%clk 0:03:01]} 2...
d6 {[%clk 0:02:57.2]} 3. d4 {[%clk 0:03:00.7]} 3... cxd4 {[%clk 0:02:58.1]} 4.
Nxd4 {[%clk 0:03:01.5]} 4... Nf6 {[%clk 0:02:58.1]} 5. Nc3 {[%clk 0:03:01.5]}
5... a6 {[%clk 0:02:57.9]} 6. Bd3 {[%clk 0:02:53.2]} 6... e5 {[%clk 0:02:54.3]}
7. Nde2 {[%clk 0:02:52.3]} 7... Be7 {[%clk 0:02:46.6]} 8. O-O {[%clk 0:02:51.2]}
8... O-O {[%clk 0:02:46.2]} 9. a4 {[%clk 0:02:45.9]} 9... Nbd7 {[%clk
0:02:46.5]} 10. h3 {[%clk 0:02:44]} 10... Nc5 {[%clk 0:02:46.6]} 11. Be3 {[%clk
0:02:43.5]} 11... Be6 {[%clk 0:02:43.6]} 12. f4 {[%clk 0:02:39.7]} 12... Nxd3
{[%clk 0:02:29.5]} 13. cxd3 {[%clk 0:02:35.7]} 13... exf4 {[%clk 0:01:53.2]} 14.
Bxf4 {[%clk 0:02:32]} 14... d5 {[%clk 0:01:51.3]} 15. e5 {[%clk 0:02:29.8]}
15... Qb6+ {[%clk 0:01:45.1]} 16. d4 {[%clk 0:02:19.2]} 16... Ne4 {[%clk
0:01:38.9]} 17. Kh2 {[%clk 0:02:18.3]} 17... Rfd8 {[%clk 0:01:33.5]} 18. Qd3
{[%clk 0:02:01.3]} 18... Bf5 {[%clk 0:01:13.1]} 19. Qe3 {[%clk 0:01:56.5]} 19...
Qxb2 {[%clk 0:01:09.4]} 20. Rfb1 {[%clk 0:01:43.9]} 20... Qc2 {[%clk 0:00:55.7]}
21. Rxb7 {[%clk 0:01:40.3]} 21... Nxc3 {[%clk 0:00:26.6]} 22. Qxc3 {[%clk
0:01:36.2]} 22... Qxe2 {[%clk 0:00:19.6]} 23. Rxe7 {[%clk 0:01:35.8]} 23... Be4
{[%clk 0:00:19.3]} 24. Qg3 {[%clk 0:01:35.5]} 24... Rac8 {[%clk 0:00:17.1]} 25.
e6 {[%clk 0:01:35.8]} 25... Rf8 {[%clk 0:00:10.8]} 26. Be5 {[%clk 0:01:32.6]}
26... Bg6 {[%clk 0:00:08.4]} 27. Re1 {[%clk 0:01:23.3]} 27... Qd3 {[%clk
0:00:06.3]} 28. Re3 {[%clk 0:01:21.9]} 28... Qf5 {[%clk 0:00:05.5]} 29. Rf3
{[%clk 0:01:19]} 29... Qh5 {[%clk 0:00:06]} 30. exf7+ {[%clk 0:01:15.3]} 30...
Kh8 {[%clk 0:00:06.4]} 31. Rf4 {[%clk 0:01:10.4]} 31... Rc2 {[%clk 0:00:06.1]}
32. Re8 {[%clk 0:01:02.5]} 32... Rc8 {[%clk 0:00:02.7]} 33. Rxc8 {[%clk
0:01:02.6]} 1-0

[Event "Late-Titled-Tuesday-Blitz-September-05-2023"]
[Site "Chess.com"]
[Date "2023.09.05"]
[Round "1"]
[White "Colombiano07"]
[Black "ckgchess"]
[Result "0-1"]
[WhiteElo "2443"]
[BlackElo "2843"]
[TimeControl "180+1"]
[EndTime "14:06:25 PDT"]
[Termination "ckgchess won on time"]

1. d4 {[%clk 0:03:00.9]} 1... Nf6 {[%clk 0:02:59.2]} 2. c4 {[%clk 0:03:00.8]}
2... e6 {[%clk 0:02:59.7]} 3. Nc3 {[%clk 0:03:00.9]} 3... d5 {[%clk 0:02:59.5]}
4. cxd5 {[%clk 0:02:58.9]} 4... exd5 {[%clk 0:03:00.4]} 5. Bg5 {[%clk
0:02:59.2]} 5... Be7 {[%clk 0:03:00.9]} 6. e3 {[%clk 0:02:59.1]} 6... h6 {[%clk
0:03:01.5]} 7. Bxf6 {[%clk 0:02:58.8]} 7... Bxf6 {[%clk 0:03:02.4]} 8. Qd2
{[%clk 0:02:59.5]} 8... Bf5 {[%clk 0:02:58.1]} 9. Nf3 {[%clk 0:02:59.8]} 9... c6
{[%clk 0:02:54.7]} 10. Bd3 {[%clk 0:02:59.5]} 10... Bxd3 {[%clk 0:02:54.7]} 11.
Qxd3 {[%clk 0:03:00.4]} 11... Nd7 {[%clk 0:02:53.8]} 12. O-O {[%clk 0:03:01.1]}
12... O-O {[%clk 0:02:52.9]} 13. b4 {[%clk 0:03:01.7]} 13... b5 {[%clk
0:02:40.7]} 14. a4 {[%clk 0:03:00.6]} 14... a6 {[%clk 0:02:41.2]} 15. a5 {[%clk
0:02:59.9]} 15... Be7 {[%clk 0:02:38]} 16. Rab1 {[%clk 0:02:55]} 16... Bd6
{[%clk 0:02:37.5]} 17. e4 {[%clk 0:02:52.6]} 17... dxe4 {[%clk 0:02:37.4]} 18.
Nxe4 {[%clk 0:02:53.5]} 18... Nf6 {[%clk 0:02:36.1]} 19. Rfc1 {[%clk 0:02:45.7]}
19... Re8 {[%clk 0:02:29.5]} 20. Nc5 {[%clk 0:02:29.2]} 20... Nd5 {[%clk
0:02:17.3]} 21. g3 {[%clk 0:02:26]} 21... Qe7 {[%clk 0:01:55.4]} 22. Re1 {[%clk
0:02:20.9]} 22... Qa7 {[%clk 0:01:51.3]} 23. Ne5 {[%clk 0:02:17]} 23... Nxb4
{[%clk 0:01:37]} 24. Rxb4 {[%clk 0:02:04.9]} 24... Bxe5 {[%clk 0:01:37.4]} 25.
Rc1 {[%clk 0:01:10.3]} 25... Rad8 {[%clk 0:01:18.1]} 26. Qf3 {[%clk 0:00:52.5]}
26... Bxd4 {[%clk 0:01:07.3]} 27. Qxc6 {[%clk 0:00:46]} 27... Rc8 {[%clk
0:01:04.1]} 28. Qb6 {[%clk 0:00:05.4]} 28... Rxc5 {[%clk 0:00:46.8]} 0-1